bitfinex/quotes_SOLUSD_20250721
["timestamp","ask_amount","ask_price","bid_price","bid_amount"]
[1753113944481,16.78468397,195.68,195.65,10.52059518]
[1753113944661,0.63873275,195.7,195.67,36.52059518]
[1753113944897,16.78468397,195.74,195.72,26.0]
[1753113945107,16.78468397,195.78,195.73,11.23059518]
[1753113945283,16.78468397,195.78,195.76,10.52059518]
[1753113945482,16.78468397,195.78,195.77,10.52059518]
[1753113945680,16.78468397,195.8,195.71,26.0]
[1753113945887,16.78468397,195.78,195.72,0.71]
[1753113946081,16.78468397,195.76,195.72,10.52059518]
[1753113946303,16.78468397,195.74,195.72,26.0]
[1753113946505,16.78468397,195.76,195.72,36.52059518]
[1753113946811,16.78468397,195.76,195.73,10.52059518]
[1753113947019,17.45468397,195.76,195.73,10.52059518]
[1753113947188,16.78468397,195.76,195.73,15.86771633]
[1753113947609,0.6385696,195.75,195.72,26.0]
[1753113948605,0.6385696,195.75,195.67,37.28]
[1753113948606,16.78468397,195.72,195.67,15.86771633]
[1753113948834,16.78468397,195.7,195.63,0.03]
[1753113949133,16.53771633,195.71,195.63,0.03]
[1753113949134,16.78468397,195.68,195.64,0.71]
[1753113949431,16.78468397,195.68,195.66,26.0]
[1753113949632,16.78468397,195.68,195.64,0.71]
[1753113949804,16.78468397,195.68,195.63,5.14157792]
[1753113950123,16.78468397,195.72,195.65,0.71]
[1753113950307,0.63870011,195.71,195.68,15.86771633]
[1753113950916,0.63870011,195.71,195.66,5.11090667]
[1753113951118,0.63870011,195.71,195.68,15.86771633]
[1753113951317,17.42335145,195.72,195.68,15.86771633]
[1753113951822,16.78468397,195.72,195.7,15.86771633]
[1753113952026,54.06468397,195.77,195.71,16.57771633]
[1753113952207,54.06468397,195.77,195.69,26.0]
[1753113952208,6.41540481,195.81,195.76,15.86771633]
[1753113952519,0.63837393,195.81,195.79,15.86771633]
[1753113952727,0.69830873,195.83,195.8,16.57771633]
[1753113952928,0.06,195.83,195.81,15.86771633]
[1753113953105,0.06,195.83,195.82,15.86771633]
[1753113953306,0.06,195.83,195.82,16.57771633]
[1753113953527,0.06,195.83,195.79,0.71]
[1753113953733,0.06,195.83,195.82,15.86771633]
[1753113954155,0.06,195.83,195.82,16.57771633]
[1753113954507,0.06,195.83,195.82,21.684447]
[1753113954709,0.06,195.83,195.82,16.57771633]
[1753113954922,0.06,195.83,195.82,15.86771633]
[1753113955606,0.06,195.83,195.82,0.71]
[1753113955806,0.06,195.83,195.82,16.57771633]
[1753113956024,0.06,195.83,195.82,15.86771633]
[1753113957028,16.84468397,195.83,195.8,26.0]
[1753113957232,16.78468397,195.81,195.78,15.86771633]
[1753113957554,0.06,195.83,195.8,41.86771633]
[1753113957843,0.06,195.83,195.82,15.86771633]
[1753113958046,0.06,195.83,195.82,10.35917283]
[1753113958242,0.06,195.83,195.82,11.06917283]
[1753113958441,0.06,195.83,195.82,16.57771633]
[1753113958748,0.06,195.83,195.8,26.0]
[1753113959047,0.06,195.83,195.82,0.9]
[1753113959236,34.02070903,195.83,195.82,0.9]
[1753113959719,71.28070903,195.83,195.82,0.9]
[1753113960135,16.78468397,195.82,195.78,15.86771633]
[1753113960333,16.78468397,195.82,195.8,15.86771633]
[1753113960542,0.69830873,195.83,195.8,16.57771633]
[1753113960919,16.53771633,195.82,195.77,15.86771633]
[1753113961118,16.78468397,195.8,195.79,26.0]
[1753113961546,16.78468397,195.8,195.75,15.86771633]
[1753113961748,0.63840653,195.8,195.76,41.86771633]
[1753113961930,16.78468397,195.78,195.73,15.86771633]
[1753113962252,33.29087205,195.78,195.69,0.7]
[1753113962443,16.78468397,195.76,195.72,15.86771633]
[1753113962652,0.6385696,195.75,195.72,15.86771633]
[1753113962846,0.6385696,195.75,195.73,15.86771633]
[1753113963339,0.6385696,195.75,195.72,15.86771633]
[1753113963560,16.78468397,195.74,195.68,0.7]
[1753113963726,16.78468397,195.76,195.73,15.86771633]
[1753113963927,16.78468397,195.76,195.74,15.86771633]
[1753113964126,16.78468397,195.76,195.75,16.56771633]
[1753113964337,16.78468397,195.8,195.75,16.56771633]
[1753113964555,16.78468397,195.78,195.76,15.86771633]
[1753113964759,16.78468397,195.8,195.77,15.86771633]
[1753113964969,16.78468397,195.8,195.78,15.86771633]
[1753113965254,0.06,195.83,195.79,16.56771633]
[1753113965450,0.06,195.83,195.82,15.86771633]
[1753113965823,5.87669611,195.83,195.76,0.25082463]
[1753113966057,5.87669611,195.83,195.78,26.0]
[1753113966058,1.34834133,195.82,195.78,26.0]
[1753113966361,33.3624003,195.81,195.73,0.7]
[1753113966568,16.78468397,195.79,195.75,26.0]
[1753113966733,16.78468397,195.77,195.75,42.56771633]
[1753113967063,16.78468397,195.79,195.75,26.0]
[1753113967229,16.78468397,195.77,195.74,10.51587436]
[1753113967428,16.78468397,195.77,195.72,0.7]
[1753113967429,0.63853698,195.76,195.73,10.51587436]
[1753113968335,0.63853698,195.76,195.72,10.51587436]
[1753113968959,0.63853698,195.76,195.73,10.51587436]
[1753113969263,0.63853698,195.76,195.72,10.51587436]
[1753113969855,0.63853698,195.76,195.73,11.41587436]
[1753113970063,0.63853698,195.76,195.73,0.9]
[1753113970229,16.78468397,195.75,195.7,10.51587436]
[1753113970430,16.78468397,195.75,195.68,26.0]
[1753113970431,16.78468397,195.73,195.69,10.51587436]
[1753113970737,17.42331882,195.73,195.69,10.51587436]
[1753113971458,17.42331882,195.73,195.7,10.51587436]
[1753113971635,16.78468397,195.73,195.7,10.51587436]
[1753113972940,16.78468397,195.71,195.7,10.51587436]
[1753113973135,22.5324428,195.73,195.7,10.51587436]
[1753113973357,16.78468397,195.72,195.69,10.51587436]
[1753113973658,0.63870011,195.71,195.68,10.51587436]
[1753113974048,0.63870011,195.71,195.69,10.51587436]
[1753113974250,16.78468397,195.73,195.7,10.51587436]
[1753113974454,16.78468397,195.73,195.71,10.51587436]
[1753113974800,0.63866748,195.72,195.7,10.51587436]
[1753113975353,0.63866748,195.72,195.69,10.51587436]
[1753113975661,0.63863485,195.73,195.7,10.51587436]
[1753113976468,18.13335145,195.72,195.67,0.03]
[1753113976658,16.78468397,195.7,195.67,0.03]
[1753113976856,0.63870011,195.71,195.67,0.73]
[1753113977168,16.78468397,195.71,195.68,10.51587436]
[1753113977341,0.63873275,195.7,195.67,0.03]
[1753113977546,0.63873275,195.7,195.67,10.54587436]
[1753113978062,0.63873275,195.7,195.67,0.03]
[1753113978255,1.34873275,195.7,195.67,0.03]
[1753113978670,0.63873275,195.7,195.67,0.03]
[1753113978973,17.42335145,195.72,195.68,0.7]
[1753113979152,17.42335145,195.72,195.69,10.51587436]
[1753113979465,16.78468397,195.72,195.7,10.51587436]
[1753113979655,16.78468397,195.72,195.69,10.51587436]
[1753113980466,16.78468397,195.72,195.68,0.7]
[1753113980467,17.42335145,195.72,195.7,0.9]
[1753113980673,11.22587436,195.71,195.67,0.03]
[1753113980851,11.15460711,195.7,195.67,0.03]
[1753113981052,27.30055833,195.68,195.67,0.03]
[1753113981273,27.93935636,195.68,195.67,0.03]
[1753113981465,28.64935636,195.68,195.67,0.03]
[1753113982082,16.78468397,195.66,195.56,0.7]
[1753113982249,16.78468397,195.6,195.56,10.51587436]
[1753113982449,11.86496633,195.59,195.54,0.14378041]
[1753113982670,16.78468397,195.57,195.56,10.51587436]
[1753113982873,16.78468397,195.58,195.56,10.51587436]
[1753113983186,0.71,195.57,195.54,0.14378041]
[1753113983353,18.13374327,195.6,195.54,0.14378041]
[1753113983553,16.78468397,195.58,195.55,10.51587436]
[1753113983755,0.63915733,195.57,195.54,0.14378041]
[1753113983975,17.42377594,195.59,195.54,0.14378041]
[1753113984158,17.42377594,195.59,195.55,10.51587436]
[1753113984355,17.42377594,195.59,195.56,10.51587436]
[1753113984552,17.42377594,195.59,195.54,0.14378041]
[1753113984553,16.78468397,195.59,195.54,5.25780341]
[1753113984859,16.78468397,195.59,195.57,10.51587436]
[1753113985049,16.78468397,195.59,195.55,0.7]
[1753113985247,16.78468397,195.59,195.57,10.51587436]
[1753113985464,16.78468397,195.59,195.56,11.21587436]
[1753113985672,16.78468397,195.59,195.57,10.51587436]
[1753113985859,1.34889598,195.65,195.58,10.51587436]
[1753113986066,54.34468397,195.64,195.61,10.51587436]
[1753113986267,0.6389613,195.63,195.59,10.51587436]
[1753113986575,17.42361261,195.64,195.56,26.0]
[1753113986767,16.78468397,195.61,195.53,26.0]
[1753113986966,16.78468397,195.59,195.56,10.51587436]
[1753113987281,16.78468397,195.59,195.53,26.7]
[1753113987975,16.78468397,195.59,195.57,10.51587436]
[1753113988153,17.49468397,195.59,195.53,26.0]
[1753113988465,16.78468397,195.59,195.57,10.51587436]
[1753113988670,16.78468397,195.58,195.57,15.62913303]
[1753113988852,0.63899396,195.62,195.57,16.32913303]
[1753113989058,16.78468397,195.63,195.61,10.51587436]
[1753113989274,16.78468397,195.64,195.61,11.21587436]
[1753113989476,0.6389613,195.63,195.55,5.1135462]
[1753113989773,16.78468397,195.61,195.56,10.51587436]
[1753113989972,0.6390593,195.6,195.56,10.51587436]
[1753113990176,16.78468397,195.59,195.55,10.51587436]
[1753113990378,16.78468397,195.59,195.57,0.9]
[1753113990678,10.51587436,195.61,195.58,10.51587436]
[1753113990679,17.4237106,195.61,195.58,10.51587436]
[1753113990872,17.4237106,195.61,195.57,0.7]
[1753113991052,17.4237106,195.61,195.58,10.51587436]
[1753113991259,16.78468397,195.61,195.58,10.51587436]
[1753113991576,16.78468397,195.61,195.59,10.51587436]
[1753113991756,16.78468397,195.61,195.58,0.67]
[1753113991951,16.78468397,195.61,195.54,0.67]
[1753113992157,16.78468397,195.59,195.54,0.67]
[1753113992351,16.78468397,195.57,195.55,10.51587436]
[1753113992858,16.78468397,195.59,195.54,26.0]
[1753113993056,16.78468397,195.57,195.55,10.51587436]
[1753113993474,16.78468397,195.58,195.54,26.0]
[1753113993693,0.63912465,195.58,195.55,10.51587436]
[1753113993875,16.78468397,195.58,195.55,10.51587436]
[1753113994595,0.71,195.64,195.57,10.51587436]
[1753113994805,0.71,195.67,195.63,10.51587436]
[1753113994973,0.63889598,195.65,195.62,10.51587436]
[1753113995176,11.22587436,195.64,195.59,10.51587436]
[1753113995479,18.13364527,195.63,195.59,10.51587436]
[1753113995677,18.13364527,195.63,195.57,26.0]
[1753113995875,18.13364527,195.63,195.55,0.67]
[1753113995876,0.71,195.62,195.55,26.0]
[1753113996098,17.4237106,195.61,195.55,26.0]
[1753113996289,16.78468397,195.61,195.58,10.51587436]
[1753113996595,16.78468397,195.62,195.58,0.67]
[1753113996780,54.34468397,195.64,195.6,10.51587436]
[1753113996976,16.78468397,195.62,195.59,10.51587436]
[1753113997174,16.78468397,195.62,195.57,26.0]
[1753113997391,16.78468397,195.6,195.55,0.67]
[1753113997591,16.78468397,195.58,195.55,0.67]
[1753113997779,16.78468397,195.6,195.56,10.51587436]
[1753113998093,16.78468397,195.6,195.54,31.11404316]
[1753113998284,16.78468397,195.6,195.56,10.51587436]
[1753113998476,16.78468397,195.6,195.57,10.51587436]
[1753113999084,16.78468397,195.6,195.55,5.11364503]
[1753113999276,16.78468397,195.6,195.57,10.51587436]
[1753113999488,16.78468397,195.58,195.54,10.51587436]
[1753113999691,0.63915733,195.57,195.54,10.51587436]
[1753113999886,0.63915733,195.57,195.53,26.0]
[1753114000089,0.63915733,195.57,195.54,10.51587436]
[1753114000293,0.63909197,195.59,195.55,26.0]
[1753114000496,16.78468397,195.58,195.55,36.51587436]
[1753114000701,16.78468397,195.58,195.55,36.54587436]
[1753114000894,16.78468397,195.58,195.55,26.03]
[1753114001113,0.63915733,195.57,195.55,26.03]
[1753114001280,0.63915733,195.57,195.55,0.03]
[1753114001609,65.53055833,195.56,195.55,0.03]
[1753114001788,55.01468397,195.56,195.55,0.03]
[1753114002101,54.94387398,195.56,195.55,0.03]
[1753114002489,54.30468397,195.58,195.55,0.03]
[1753114002686,54.94380862,195.58,195.55,0.03]
[1753114003006,16.78468397,195.56,195.55,0.03]
[1753114003182,27.93974834,195.56,195.55,0.03]
[1753114003387,17.42387398,195.56,195.55,0.03]
[1753114003581,54.28468397,195.56,195.55,0.03]
[1753114004198,16.78468397,195.56,195.55,0.03]
[1753114005488,28.64974834,195.56,195.55,0.03]
[1753114006103,33.76326848,195.56,195.55,0.03]
[1753114006301,23.24739412,195.56,195.55,0.03]
[1753114006606,16.78468397,195.56,195.55,10.54587436]
[1753114006779,37.48,195.58,195.55,11.21587436]
[1753114006979,16.78468397,195.57,195.56,0.67]
[1753114007289,37.48,195.58,195.56,10.51587436]
[1753114007478,16.78468397,195.57,195.56,10.51587436]
[1753114007685,16.78468397,195.63,195.57,0.67]
[1753114007903,37.48,195.62,195.57,0.67]
[1753114008112,17.4237106,195.61,195.58,10.51587436]
[1753114008410,38.17883068,195.67,195.59,0.67]
[1753114008618,53.8054306,195.67,195.61,10.51587436]
[1753114008995,16.78468397,195.66,195.61,10.51587436]
[1753114009192,17.4235473,195.66,195.62,10.51587436]
[1753114010015,16.78468397,195.66,195.64,10.51587436]
[1753114010227,37.54,195.67,195.65,10.51587436]
[1753114010515,0.06,195.67,195.66,16.29678103]
[1753114010892,0.06,195.67,195.66,5.78090667]
[1753114011096,0.06,195.67,195.66,16.29678103]
[1753114011496,0.06,195.67,195.66,42.29678103]
[1753114012908,0.06,195.67,195.66,31.78090667]
[1753114013126,0.06,195.67,195.66,26.67]
[1753114013293,0.06,195.67,195.58,0.25180307]
[1753114013614,64.86055833,195.67,195.62,10.51587436]
[1753114013825,1.34886333,195.66,195.62,10.51587436]
[1753114014026,1.34886333,195.66,195.61,10.51587436]
[1753114014318,16.78468397,195.64,195.59,10.51587436]
[1753114014520,54.30468397,195.64,195.59,10.51587436]
[1753114014686,0.6389613,195.63,195.56,5.78352014]
[1753114014886,27.30055833,195.62,195.56,10.51587436]
[1753114015103,27.30055833,195.62,195.55,5.14376214]
[1753114015104,16.78468397,195.6,195.55,0.03]
[1753114015304,16.78468397,195.58,195.55,0.03]
[1753114015520,27.30055833,195.56,195.55,0.03]
[1753114016018,16.78468397,195.56,195.55,0.03]
[1753114016611,17.49468397,195.56,195.55,0.03]
[1753114016913,22.60820411,195.56,195.55,0.03]
[1753114017301,17.49468397,195.56,195.55,0.03]
[1753114017698,16.78468397,195.56,195.55,0.03]
[1753114018015,16.78468397,195.56,195.55,11.21587436]
[1753114018421,17.49468397,195.56,195.55,0.03]
[1753114018598,60.12820411,195.56,195.55,0.03]
[1753114018804,70.64407847,195.56,195.55,0.03]
[1753114020328,16.78468397,195.56,195.55,0.03]
[1753114020500,70.61326848,195.56,195.55,0.03]
[1753114020709,77.55876848,195.56,195.55,0.03]
[1753114021027,16.78468397,195.55,195.46,0.14563542]
[1753114021232,16.78468397,195.51,195.46,0.14563542]
[1753114021432,16.78468397,195.49,195.46,0.14563542]
[1753114021604,17.42413557,195.48,195.47,0.03]
[1753114021799,55.96413557,195.48,195.47,0.03]
[1753114022004,17.42413557,195.48,195.47,0.03]
[1753114022205,16.78468397,195.48,195.47,0.03]
[1753114022411,16.78468397,195.48,195.47,0.71]
[1753114022608,16.78468397,195.48,195.47,0.03]
[1753114022808,33.13617118,195.48,195.47,0.03]
[1753114023299,16.78468397,195.48,195.47,0.03]
[1753114023500,54.66468397,195.48,195.47,0.03]
[1753114024722,61.13974842,195.48,195.47,0.03]
[1753114024906,71.65562278,195.48,195.47,0.03]
[1753114025107,61.13974842,195.48,195.47,0.03]
[1753114025308,71.65562278,195.48,195.47,0.03]
[1753114025932,71.65562278,195.48,195.46,0.14563542]
[1753114025933,32.41643288,195.47,195.46,0.14563542]
[1753114026140,40.87413288,195.47,195.46,1e-08]
[1753114026319,53.66381927,195.47,195.31,27.32955742]
[1753114026507,16.78468397,195.37,195.34,26.0]
[1753114026829,16.78468397,195.37,195.35,0.68]
[1753114027008,38.04,195.38,195.36,11.19587436]
[1753114027205,0.72,195.37,195.34,26.0]
[1753114027436,54.82468397,195.39,195.31,26.64955742]
[1753114027609,65.34055833,195.39,195.34,26.0]
[1753114027807,54.82468397,195.39,195.34,26.68]
[1753114028029,59.94268231,195.39,195.34,26.68]
[1753114028233,27.30055833,195.37,195.31,21.52973175]
[1753114028407,16.78468397,195.35,195.31,21.52973175]
[1753114028729,10.51587436,195.32,195.31,21.52973175]
[1753114029030,66.48053375,195.32,195.31,21.52973175]
[1753114029233,67.20053375,195.32,195.31,21.52973175]
[1753114029625,56.68465939,195.32,195.31,21.52973175]
[1753114029839,67.20053375,195.32,195.31,21.52973175]
[1753114030010,72.32033714,195.32,195.16,0.25423652]
[1753114030209,10.51587436,195.26,195.17,5.80373827]
[1753114030417,56.02488883,195.25,195.17,0.68]
[1753114030618,16.78468397,195.24,195.1,5.12557662]
[1753114030828,0.64027045,195.23,195.11,0.25509025]
[1753114031012,0.64027045,195.23,195.2,10.51587436]
[1753114031222,16.78468397,195.27,195.22,10.51587436]
[1753114031428,16.78468397,195.25,195.23,10.51587436]
[1753114031646,38.78,195.31,195.24,10.51587436]
[1753114031815,16.78468397,195.3,195.21,7.655]
[1753114032021,5.11975804,195.33,195.24,31.12164796]
[1753114032343,16.78468397,195.33,195.29,10.51587436]
[1753114032525,16.78468397,195.33,195.27,0.68]
[1753114033432,16.78468397,195.33,195.24,31.80164796]
[1753114033637,17.42462663,195.33,195.24,32.05593795]
[1753114033939,28.66050099,195.33,195.24,26.68]
[1753114034144,28.66050099,195.33,195.18,38.96]
[1753114034145,16.78468397,195.26,195.17,5.12373827]
[1753114034335,67.1407304,195.26,195.2,10.51587436]
[1753114034929,55.98468397,195.26,195.23,10.51587436]
[1753114035130,16.78468397,195.24,195.19,0.68]
[1753114035329,16.78468397,195.22,195.11,0.1111166]
[1753114035643,16.78468397,195.2,195.11,0.7911166]
[1753114035943,16.78468397,195.16,195.11,0.1111166]
[1753114036146,17.42521689,195.15,195.14,10.51587436]
[1753114036350,16.78468397,195.18,195.08,0.68]
[1753114036522,16.78468397,195.18,195.16,10.51587436]
[1753114036728,0.72,195.2,195.17,10.51587436]
[1753114036729,0.64036885,195.2,195.17,10.51587436]
[1753114036925,16.78468397,195.19,195.15,26.0]
[1753114037245,16.78468397,195.27,195.16,0.93505103]
[1753114037418,16.78468397,195.25,195.17,40.02]
[1753114037618,16.78468397,195.25,195.17,39.34]
[1753114037922,0.64010651,195.28,195.21,5.12268838]
[1753114038237,0.72,195.35,195.27,10.51587436]
[1753114038431,11.87565325,195.38,195.33,10.51587436]
[1753114038822,0.72,195.37,195.27,40.16]
[1753114039122,27.30055833,195.35,195.24,26.68]
[1753114039322,16.78468397,195.33,195.25,10.51587436]
[1753114039524,16.78468397,195.28,195.25,10.51587436]
[1753114039852,16.78468397,195.29,195.26,10.51587436]
[1753114040047,16.78468397,195.31,195.22,0.68]
[1753114040341,27.94056652,195.31,195.22,5.80228986]
[1753114040544,27.94056652,195.31,195.22,0.68]
[1753114040741,17.42469216,195.31,195.22,0.68]
[1753114040935,0.72,195.3,195.24,10.51587436]
[1753114041144,16.78468397,195.28,195.2,26.0]
[1753114041341,16.78468397,195.26,195.2,26.0]
[1753114041529,1.36004096,195.3,195.25,10.51587436]
[1753114041733,16.78468397,195.29,195.21,0.68]
[1753114041935,0.64010651,195.28,195.25,10.51587436]
[1753114042127,16.78468397,195.29,195.21,0.68]
[1753114042331,22.54535484,195.29,195.23,0.68]
[1753114042535,22.54535484,195.29,195.26,10.51587436]
[1753114042923,22.54535484,195.29,195.25,0.03]
[1753114043152,22.54535484,195.29,195.25,15.97655396]
[1753114043331,39.2119088,195.29,195.25,0.03]
[1753114043533,17.4247577,195.29,195.26,15.94655396]
[1753114043850,21.90396317,195.34,195.28,15.94655396]
[1753114044038,21.90456597,195.32,195.3,15.94655396]
[1753114044223,16.78468397,195.32,195.3,15.94655396]
[1753114044638,16.78468397,195.33,195.3,15.94655396]
[1753114044845,16.78468397,195.33,195.31,15.94655396]
[1753114045250,16.78468397,195.34,195.31,15.94655396]
[1753114045545,0.63987714,195.35,195.29,5.80058926]
[1753114045546,39.52,195.37,195.33,15.94655396]
[1753114045852,39.48,195.41,195.36,15.94655396]
[1753114046155,21.06295201,195.45,195.4,15.94655396]
[1753114046336,17.30613644,195.44,195.35,0.68]
[1753114046536,32.73123793,195.43,195.35,0.68]
[1753114046737,0.63964793,195.42,195.37,15.94655396]
[1753114046939,1.35964793,195.42,195.35,0.68]
[1753114047148,16.78468397,195.41,195.39,15.94655396]
[1753114047344,16.78468397,195.44,195.4,15.94655396]
[1753114047657,39.48,195.46,195.43,15.94655396]
[1753114047860,5.83564599,195.48,195.43,15.94655396]
[1753114048055,0.63948431,195.47,195.44,15.94655396]
[1753114048351,16.78468397,195.46,195.43,15.94655396]
[1753114048925,16.78468397,195.46,195.44,15.94655396]
[1753114049130,16.78468397,195.46,195.41,0.68]
[1753114049447,0.72,195.45,195.37,0.25328057]
[1753114049649,16.78468397,195.44,195.3,0.2535552]
[1753114049890,16.78468397,195.39,195.34,15.94655396]
[1753114050057,0.63977889,195.38,195.33,15.94655396]
[1753114050238,5.11875511,195.36,195.29,0.68]
[1753114050431,16.78468397,195.37,195.34,15.94655396]
[1753114050657,16.78468397,195.39,195.35,16.62655396]
[1753114050838,16.78468397,195.39,195.36,15.94655396]
[1753114051440,16.78468397,195.4,195.35,0.68]
[1753114051631,16.78468397,195.4,195.38,15.94655396]
[1753114052240,16.78468397,195.38,195.27,0.67]
[1753114052439,16.78468397,195.32,195.27,15.94655396]
[1753114052735,17.42465939,195.32,195.28,15.94655396]
[1753114053036,0.63977889,195.38,195.31,15.94655396]
[1753114053235,17.42446286,195.38,195.33,15.94655396]
[1753114053439,16.78468397,195.37,195.33,15.94655396]
[1753114053636,16.78468397,195.37,195.32,15.94655396]
[1753114054066,16.78468397,195.37,195.3,5.1203277]
[1753114054371,16.78468397,195.37,195.33,15.94655396]
[1753114054572,16.78468397,195.35,195.25,0.28419814]
[1753114054741,16.78468397,195.33,195.29,15.94655396]
[1753114055060,16.78468397,195.31,195.27,15.94655396]
[1753114055241,5.11857614,195.37,195.3,15.94655396]
[1753114055242,0.71,195.36,195.3,15.94655396]
[1753114055431,17.42456111,195.35,195.28,0.67]
[1753114055637,33.37111507,195.35,195.29,15.94655396]
[1753114056066,16.78468397,195.31,195.25,0.03]
[1753114056236,33.37124612,195.31,195.25,15.97655396]
[1753114056437,34.08124612,195.31,195.25,15.97655396]
[1753114056644,17.42469216,195.31,195.28,15.94655396]
[1753114057233,17.42469216,195.31,195.25,0.03]
[1753114057435,16.78468397,195.31,195.28,15.94655396]
[1753114057663,16.78468397,195.31,195.29,15.94655396]
[1753114058560,21.90479661,195.31,195.29,15.94655396]
[1753114058867,22.5448048,195.31,195.28,15.94655396]
[1753114059164,17.42462663,195.33,195.25,5.15162978]
[1753114059360,17.42462663,195.33,195.28,15.94655396]
[1753114059567,17.42462663,195.33,195.29,15.94655396]
[1753114059751,16.78468397,195.38,195.32,15.94655396]
[1753114059952,16.78468397,195.36,195.33,15.94655396]
[1753114060151,0.63981163,195.37,195.35,15.94655396]
[1753114060351,16.78468397,195.4,195.36,15.94655396]
[1753114060550,0.6396152,195.43,195.39,15.94655396]
[1753114061270,16.78468397,195.41,195.38,15.94655396]
[1753114061575,0.6397134,195.4,195.34,0.67]
[1753114061779,16.78468397,195.39,195.35,15.94655396]
[1753114062065,16.78468397,195.37,195.35,15.94655396]
[1753114062246,5.75814735,195.38,195.29,0.67]
[1753114062572,5.75814735,195.38,195.34,15.94655396]
[1753114062573,16.78468397,195.35,195.34,15.94655396]
[1753114062772,16.78468397,195.35,195.29,0.67]
[1753114063258,16.78468397,195.35,195.32,15.94655396]
[1753114063565,17.4244956,195.37,195.32,15.94655396]
[1753114063745,17.49468397,195.36,195.32,15.94655396]
[1753114063946,0.63987714,195.35,195.32,15.94655396]
[1753114064241,0.63981163,195.37,195.33,15.94655396]
[1753114064454,16.78468397,195.36,195.32,15.94655396]
[1753114064765,0.63987714,195.35,195.32,15.94655396]
[1753114064969,0.63987714,195.35,195.29,26.0]
[1753114065146,0.63987714,195.35,195.32,15.94655396]
[1753114065347,0.63987714,195.35,195.31,15.94655396]
[1753114065557,1.34987714,195.35,195.32,15.94655396]
[1753114065770,0.63987714,195.35,195.32,15.94655396]
[1753114066184,17.42452835,195.36,195.32,15.94655396]
[1753114066349,16.78468397,195.36,195.33,15.94655396]
[1753114067050,16.78468397,195.39,195.35,15.94655396]
[1753114067263,16.78468397,195.39,195.3,0.5]
[1753114067264,11.90707066,195.38,195.31,0.67]
[1753114067469,16.78468397,195.37,195.31,0.67]
[1753114067671,16.78468397,195.37,195.34,10.55729177]
[1753114068194,16.78468397,195.37,195.35,10.55729177]
[1753114068479,0.63968067,195.41,195.36,10.55729177]
[1753114068672,16.78468397,195.39,195.35,10.55729177]
[1753114068865,17.42443011,195.39,195.35,10.55729177]
[1753114069375,17.42443011,195.39,195.32,0.67]
[1753114069582,16.78468397,195.39,195.32,0.67]
[1753114069784,16.78468397,195.39,195.36,10.55729177]
[1753114070071,0.6397134,195.4,195.36,10.55729177]
[1753114070272,21.90240472,195.4,195.38,10.55729177]
[1753114070488,21.90240472,195.4,195.37,10.55729177]
[1753114070652,21.90240472,195.4,195.36,10.55729177]
[1753114070852,22.61240472,195.4,195.36,10.55729177]
[1753114071056,22.61240472,195.4,195.33,0.67]
[1753114071277,0.63974614,195.39,195.33,0.67]
[1753114071579,22.61240472,195.4,195.36,10.55729177]
[1753114071875,16.78468397,195.4,195.38,10.55729177]
[1753114072486,21.90241966,195.4,195.37,11.05729177]
[1753114072983,21.90241966,195.4,195.37,0.5]
[1753114072984,1.34974614,195.39,195.37,0.5]
[1753114073159,16.78468397,195.37,195.32,10.55729177]
[1753114073348,0.71,195.36,195.32,10.55729177]
[1753114073752,5.11901714,195.35,195.32,10.55729177]
[1753114074270,16.78468397,195.35,195.32,10.55729177]
[1753114074479,17.42456111,195.35,195.31,10.55729177]
[1753114074654,16.78468397,195.35,195.31,10.55729177]
[1753114074853,16.78468397,195.35,195.32,10.55729177]
[1753114075388,5.11870459,195.37,195.33,10.55729177]
[1753114075685,16.78468397,195.36,195.32,10.55729177]
[1753114075985,5.82901714,195.35,195.31,10.55729177]
[1753114076170,21.90348821,195.36,195.32,10.55729177]
[1753114076377,16.78468397,195.36,195.32,11.22729177]
[1753114076951,0.63974614,195.39,195.35,10.55729177]
[1753114077292,0.06,195.4,195.38,10.55729177]
[1753114077585,0.06,195.4,195.39,11.22729177]
[1753114077782,0.06,195.4,195.36,26.67]
[1753114078102,0.06,195.4,195.37,10.55729177]
[1753114078266,0.06,195.4,195.39,10.55729177]
[1753114078656,0.06,195.43,195.39,11.48080895]
[1753114078957,0.06,195.43,195.42,36.55729177]
[1753114079157,0.63932078,195.52,195.42,36.81061253]
[1753114079472,39.16,195.55,195.51,10.55729177]
[1753114079667,0.63925539,195.54,195.53,10.55729177]